[Event "Titled Tuesday Blitz August 02 Late 2022"]
[White "Czarnota, Pawel"]
[Black "Gascon Del Nogal, Jose Rafael"]
[WhiteFideId "1121219"]
[BlackFideId "3902463"]
[WhiteElo "2534"]
[BlackElo "2473"]
[Result "1-0"]
[Round "04"]
[TimeControl "180+1"]
[Date "2022.08.02"]
[WhiteClock "0:01:22"]
[BlackClock "0:00:08"]

1. e4 {[%clk 0:03:00]}  c5 {[%clk 0:02:54]} 2. Nf3 {[%clk 0:03:00]}  Nc6 {[%clk 0:02:54]} 3. d4 {[%clk 0:03:01]}  cxd4 {[%clk 0:02:55]} 4. Nxd4 {[%clk 0:03:01]}  Nf6 {[%clk 0:02:56]} 5. Nc3 {[%clk 0:03:01]}  d6 {[%clk 0:02:56]} 6. Bg5 {[%clk 0:03:01]}  e6 {[%clk 0:02:56]} 7. Qd2 {[%clk 0:03:01]}  a6 {[%clk 0:02:57]} 8. O-O-O {[%clk 0:03:02]}  Bd7 {[%clk 0:02:55]} 9. f4 {[%clk 0:03:01]}  Be7 {[%clk 0:02:55]} 10. Kb1 {[%clk 0:02:50]}  b5 {[%clk 0:02:52]} 11. Bxf6 {[%clk 0:02:50]}  Bxf6 {[%clk 0:02:46]} 12. Nf3 {[%clk 0:02:41]}  Be7 {[%clk 0:02:37]} 13. e5 {[%clk 0:02:39]}  d5 {[%clk 0:02:36]} 14. Bd3 {[%clk 0:02:39]}  b4 {[%clk 0:02:21]} 15. Ne2 {[%clk 0:02:39]}  O-O {[%clk 0:02:08]} 16. h4 {[%clk 0:02:38]}  f5 {[%clk 0:02:08]} 17. exf6 {[%clk 0:02:30]}  Bxf6 {[%clk 0:02:07]} 18. Ng5 {[%clk 0:02:31]}  h6 {[%clk 0:02:03]} 19. Qe3 {[%clk 0:02:21]}  Qa5 {[%clk 0:01:48]} 20. Nh7 {[%clk 0:02:15]}  b3 {[%clk 0:01:42]} 21. axb3 {[%clk 0:02:06]}  Nb4 {[%clk 0:01:42]} 22. Nxf6+ {[%clk 0:02:06]}  Rxf6 {[%clk 0:01:39]} 23. Nc1 {[%clk 0:02:06]}  Qc7 {[%clk 0:01:29]} 24. Rhf1 {[%clk 0:01:58]}  a5 {[%clk 0:01:28]} 25. g4 {[%clk 0:01:57]}  a4 {[%clk 0:01:24]} 26. g5 {[%clk 0:01:49]}  Rf7 {[%clk 0:00:41]} 27. gxh6 {[%clk 0:01:48]}  a3 {[%clk 0:00:40]} 28. bxa3 {[%clk 0:01:37]}  Rxa3 {[%clk 0:00:40]} 29. Qe5 {[%clk 0:01:32]}  Qa7 {[%clk 0:00:21]} 30. Rg1 {[%clk 0:01:27]}  d4 {[%clk 0:00:08]} 31. Rxg7+ {[%clk 0:01:26]}  Kf8 {[%clk 0:00:08]} 32. Qd6+ {[%clk 0:01:22]} 1-0


[Site "https://www.chess.com"]

[Event "Titled Tuesday Blitz August 02 Late 2022"]
[White "Fedoseev, Vladimir"]
[Black "Chigaev, Maksim"]
[WhiteFideId "24130737"]
[BlackFideId "4108116"]
[WhiteElo "2726"]
[BlackElo "2438"]
[Result "1-0"]
[Round "04"]
[TimeControl "180+1"]
[Date "2022.08.02"]
[WhiteClock "0:00:06"]
[BlackClock "0:00:01"]

1. e4 {[%clk 0:02:56]}  c5 {[%clk 0:02:54]} 2. Nf3 {[%clk 0:02:55]}  g6 {[%clk 0:02:54]} 3. c3 {[%clk 0:02:53]}  d5 {[%clk 0:02:52]} 4. e5 {[%clk 0:02:40]}  Nc6 {[%clk 0:02:49]} 5. d4 {[%clk 0:02:36]}  Bg4 {[%clk 0:02:48]} 6. Bb5 {[%clk 0:02:34]}  Rc8 {[%clk 0:02:46]} 7. dxc5 {[%clk 0:02:26]}  e6 {[%clk 0:02:40]} 8. Be3 {[%clk 0:02:22]}  Ne7 {[%clk 0:02:36]} 9. Nbd2 {[%clk 0:02:19]}  Bg7 {[%clk 0:02:32]} 10. Qa4 {[%clk 0:02:06]}  Bxf3 {[%clk 0:02:27]} 11. Nxf3 {[%clk 0:02:07]}  O-O {[%clk 0:02:27]} 12. Bd4 {[%clk 0:02:05]}  b6 {[%clk 0:02:02]} 13. cxb6 {[%clk 0:01:46]}  Nxd4 {[%clk 0:02:01]} 14. Qxd4 {[%clk 0:01:46]}  axb6 {[%clk 0:01:54]} 15. O-O {[%clk 0:01:44]}  Nf5 {[%clk 0:01:49]} 16. Qb4 {[%clk 0:01:38]}  h5 {[%clk 0:01:47]} 17. Bd3 {[%clk 0:01:34]}  Ne7 {[%clk 0:01:47]} 18. Rae1 {[%clk 0:01:30]}  Rc5 {[%clk 0:01:46]} 19. Qf4 {[%clk 0:01:23]}  Ra5 {[%clk 0:01:25]} 20. a3 {[%clk 0:01:21]}  Rc5 {[%clk 0:01:25]} 21. Kh1 {[%clk 0:01:15]}  Qb8 {[%clk 0:01:04]} 22. Qe3 {[%clk 0:01:07]}  Rcc8 {[%clk 0:00:51]} 23. Rg1 {[%clk 0:01:03]}  Qc7 {[%clk 0:00:41]} 24. g4 {[%clk 0:00:56]}  hxg4 {[%clk 0:00:39]} 25. Rxg4 {[%clk 0:00:57]}  d4 {[%clk 0:00:36]} 26. Nxd4 {[%clk 0:00:55]}  Rfd8 {[%clk 0:00:34]} 27. f4 {[%clk 0:00:48]}  Nd5 {[%clk 0:00:33]} 28. Qf3 {[%clk 0:00:33]}  Nxc3 {[%clk 0:00:27]} 29. Nxe6 {[%clk 0:00:30]}  Rxd3 {[%clk 0:00:25]} 30. Qxd3 {[%clk 0:00:23]}  Qc6+ {[%clk 0:00:25]} 31. Rg2 {[%clk 0:00:22]}  Nd5 {[%clk 0:00:18]} 32. Nd4 {[%clk 0:00:16]}  Qc4 {[%clk 0:00:16]} 33. Qe4 {[%clk 0:00:11]}  Ne7 {[%clk 0:00:04]} 34. Rc2 {[%clk 0:00:10]}  Qa6 {[%clk 0:00:04]} 35. Rxc8+ {[%clk 0:00:10]}  Qxc8 {[%clk 0:00:05]} 36. Nf3 {[%clk 0:00:08]}  Nf5 {[%clk 0:00:03]} 37. Kg2 {[%clk 0:00:08]}  Qd8 {[%clk 0:00:03]} 38. e6 {[%clk 0:00:07]}  f6 {[%clk 0:00:03]} 39. e7 {[%clk 0:00:07]}  Qe8 {[%clk 0:00:04]} 40. Qe6+ {[%clk 0:00:07]}  Kh7 {[%clk 0:00:04]} 41. Re4 {[%clk 0:00:06]}  Bh6 {[%clk 0:00:02]} 42. Nd4 {[%clk 0:00:07]}  Ng7 {[%clk 0:00:03]} 43. Qc6 {[%clk 0:00:06]}  Qg8 {[%clk 0:00:01]} 44. e8=Q {[%clk 0:00:06]} 1-0


[Site "https://www.chess.com"]

[Event "Titled Tuesday Blitz August 02 Late 2022"]
[White "Ghaem Maghami, Ehsan"]
[Black "Kravtsiv, Martyn"]
[WhiteFideId "12500739"]
[BlackFideId "14113147"]
[WhiteElo "2627"]
[BlackElo "2694"]
[Result "1-0"]
[Round "04"]
[TimeControl "180+1"]
[Date "2022.08.02"]
[WhiteClock "0:01:23"]
[BlackClock "0:00:13"]

1. c4 {[%clk 0:02:57]}  e6 {[%clk 0:02:59]} 2. Nf3 {[%clk 0:02:57]}  d5 {[%clk 0:02:59]} 3. g3 {[%clk 0:02:57]}  d4 {[%clk 0:02:57]} 4. Bg2 {[%clk 0:02:57]}  c5 {[%clk 0:02:57]} 5. e3 {[%clk 0:02:56]}  Nc6 {[%clk 0:02:56]} 6. O-O {[%clk 0:02:57]}  Nf6 {[%clk 0:02:48]} 7. d3 {[%clk 0:02:55]}  e5 {[%clk 0:02:46]} 8. Re1 {[%clk 0:02:52]}  Bd6 {[%clk 0:02:45]} 9. exd4 {[%clk 0:02:51]}  cxd4 {[%clk 0:02:45]} 10. c5 {[%clk 0:02:47]}  Bc7 {[%clk 0:02:40]} 11. Nbd2 {[%clk 0:02:45]}  O-O {[%clk 0:02:38]} 12. Nc4 {[%clk 0:02:46]}  Re8 {[%clk 0:02:37]} 13. Bg5 {[%clk 0:02:46]}  h6 {[%clk 0:02:29]} 14. Bxf6 {[%clk 0:02:44]}  Qxf6 {[%clk 0:02:30]} 15. Nfd2 {[%clk 0:02:44]}  Bf5 {[%clk 0:02:12]} 16. Ne4 {[%clk 0:02:22]}  Bxe4 {[%clk 0:02:12]} 17. Bxe4 {[%clk 0:02:22]}  Qe7 {[%clk 0:01:56]} 18. Qb3 {[%clk 0:02:21]}  Rab8 {[%clk 0:01:50]} 19. Qa3 {[%clk 0:02:17]}  Qd7 {[%clk 0:01:38]} 20. b4 {[%clk 0:02:09]}  a6 {[%clk 0:01:37]} 21. Qb3 {[%clk 0:02:09]}  Qe6 {[%clk 0:01:17]} 22. Rab1 {[%clk 0:01:58]}  Kh8 {[%clk 0:01:11]} 23. Bg2 {[%clk 0:01:52]}  f5 {[%clk 0:00:35]} 24. a4 {[%clk 0:01:47]}  a5 {[%clk 0:00:34]} 25. b5 {[%clk 0:01:44]}  Nb4 {[%clk 0:00:34]} 26. b6 {[%clk 0:01:44]}  Bd8 {[%clk 0:00:32]} 27. Nxa5 {[%clk 0:01:40]}  Qxb3 {[%clk 0:00:20]} 28. Rxb3 {[%clk 0:01:41]}  Na6 {[%clk 0:00:21]} 29. Rb5 {[%clk 0:01:36]}  e4 {[%clk 0:00:18]} 30. dxe4 {[%clk 0:01:32]}  d3 {[%clk 0:00:18]} 31. e5 {[%clk 0:01:31]}  Be7 {[%clk 0:00:18]} 32. Nxb7 {[%clk 0:01:30]}  Rxb7 {[%clk 0:00:17]} 33. Bxb7 {[%clk 0:01:29]}  Nxc5 {[%clk 0:00:17]} 34. Bf3 {[%clk 0:01:26]}  Nxa4 {[%clk 0:00:14]} 35. b7 {[%clk 0:01:24]}  Rb8 {[%clk 0:00:14]} 36. Ra1 {[%clk 0:01:24]}  Nc3 {[%clk 0:00:13]} 37. Ra8 {[%clk 0:01:23]} 1-0


[Site "https://www.chess.com"]

[Event "Titled Tuesday Blitz August 02 Late 2022"]
[White "Grischuk, Alexander"]
[Black "Rasulov, Vugar"]
[WhiteFideId "4126025"]
[BlackFideId "13402390"]
[WhiteElo "2762"]
[BlackElo "2523"]
[Result "1-0"]
[Round "04"]
[TimeControl "180+1"]
[Date "2022.08.02"]
[WhiteClock "0:00:10"]
[BlackClock "0:00:34"]

1. d4 {[%clk 0:03:00]}  d5 {[%clk 0:02:59]} 2. c4 {[%clk 0:03:00]}  c6 {[%clk 0:03:00]} 3. Nf3 {[%clk 0:03:00]}  Nf6 {[%clk 0:03:00]} 4. Nc3 {[%clk 0:03:00]}  e6 {[%clk 0:03:00]} 5. Bg5 {[%clk 0:03:00]}  h6 {[%clk 0:03:00]} 6. Bh4 {[%clk 0:03:00]}  dxc4 {[%clk 0:02:54]} 7. e4 {[%clk 0:03:00]}  b5 {[%clk 0:02:54]} 8. e5 {[%clk 0:02:58]}  g5 {[%clk 0:02:55]} 9. Nxg5 {[%clk 0:02:58]}  Nd5 {[%clk 0:02:55]} 10. Nxf7 {[%clk 0:02:50]}  Qxh4 {[%clk 0:02:55]} 11. Nxh8 {[%clk 0:02:50]}  Bb4 {[%clk 0:02:56]} 12. Qd2 {[%clk 0:02:39]}  c5 {[%clk 0:02:54]} 13. dxc5 {[%clk 0:02:20]}  Nd7 {[%clk 0:02:46]} 14. Be2 {[%clk 0:02:15]}  Bb7 {[%clk 0:02:40]} 15. O-O {[%clk 0:02:09]}  Nf4 {[%clk 0:02:22]} 16. Bh5+ {[%clk 0:01:06]}  Nxh5 {[%clk 0:02:14]} 17. Qxh6 {[%clk 0:01:05]}  O-O-O {[%clk 0:01:43]} 18. Nf7 {[%clk 0:01:04]}  Rg8 {[%clk 0:01:30]} 19. Nd6+ {[%clk 0:00:56]}  Kb8 {[%clk 0:01:30]} 20. Nxb7 {[%clk 0:00:46]}  Rxg2+ {[%clk 0:01:29]} 21. Kxg2 {[%clk 0:00:47]}  Nf4+ {[%clk 0:01:30]} 22. Qxf4 {[%clk 0:00:47]}  Qxf4 {[%clk 0:01:31]} 23. Nd6 {[%clk 0:00:46]}  Nxe5 {[%clk 0:01:24]} 24. f3 {[%clk 0:00:35]}  Bxc5 {[%clk 0:01:05]} 25. Nde4 {[%clk 0:00:35]}  Nd3 {[%clk 0:00:49]} 26. Nxc5 {[%clk 0:00:14]}  Nxc5 {[%clk 0:00:49]} 27. Nxb5 {[%clk 0:00:13]}  Nd3 {[%clk 0:00:45]} 28. Nc3 {[%clk 0:00:12]}  Kc7 {[%clk 0:00:34]} 29. Ne4 {[%clk 0:00:10]} 1-0


[Site "https://www.chess.com"]

[Event "Titled Tuesday Blitz August 02 Late 2022"]
[White "Gubajdullin, Alexei"]
[Black "Livaic, Leon"]
[WhiteFideId "4141202"]
[BlackFideId "14531534"]
[WhiteElo "2190"]
[BlackElo "2540"]
[Result "0-1"]
[Round "04"]
[TimeControl "180+1"]
[Date "2022.08.02"]
[WhiteClock "0:00:41"]
[BlackClock "0:01:32"]

1. Nf3 {[%clk 0:03:00]}  d5 {[%clk 0:02:59]} 2. d4 {[%clk 0:03:00]}  Nf6 {[%clk 0:02:59]} 3. Bf4 {[%clk 0:03:00]}  Bf5 {[%clk 0:02:57]} 4. e3 {[%clk 0:03:00]}  e6 {[%clk 0:02:56]} 5. c4 {[%clk 0:02:59]}  Bxb1 {[%clk 0:02:54]} 6. Qxb1 {[%clk 0:02:59]}  Bb4+ {[%clk 0:02:54]} 7. Kd1 {[%clk 0:02:59]}  Bd6 {[%clk 0:02:51]} 8. Bxd6 {[%clk 0:02:55]}  Qxd6 {[%clk 0:02:51]} 9. c5 {[%clk 0:02:49]}  Qe7 {[%clk 0:02:51]} 10. Bd3 {[%clk 0:02:49]}  Nc6 {[%clk 0:02:50]} 11. b4 {[%clk 0:02:48]}  e5 {[%clk 0:02:49]} 12. b5 {[%clk 0:02:42]}  e4 {[%clk 0:02:49]} 13. bxc6 {[%clk 0:02:41]}  bxc6 {[%clk 0:02:42]} 14. Qb7 {[%clk 0:02:40]}  O-O {[%clk 0:02:42]} 15. Ne5 {[%clk 0:02:31]}  exd3 {[%clk 0:02:41]} 16. f3 {[%clk 0:02:08]}  Rab8 {[%clk 0:02:40]} 17. Qxc6 {[%clk 0:02:07]}  Rb2 {[%clk 0:02:40]} 18. Qa6 {[%clk 0:01:42]}  Nd7 {[%clk 0:02:28]} 19. Nxd3 {[%clk 0:01:29]}  Rxg2 {[%clk 0:02:26]} 20. Nf4 {[%clk 0:01:25]}  Rf2 {[%clk 0:02:12]} 21. Nxd5 {[%clk 0:01:20]}  Qg5 {[%clk 0:02:12]} 22. Nf4 {[%clk 0:01:05]}  Nxc5 {[%clk 0:01:44]} 23. dxc5 {[%clk 0:01:02]}  Qe5 {[%clk 0:01:33]} 24. Ke1 {[%clk 0:00:41]}  Qxe3+ {[%clk 0:01:33]} 25. Ne2 {[%clk 0:00:41]}  Re8 {[%clk 0:01:32]} 0-1


[Site "https://www.chess.com"]

[Event "Titled Tuesday Blitz August 02 Late 2022"]
[White "Ibarra Jerez, Jose Carlos"]
[Black "Fernandez, Fernando"]
[WhiteFideId "2226332"]
[BlackFideId "3802299"]
[WhiteElo "2628"]
[BlackElo "2292"]
[Result "1-0"]
[Round "04"]
[TimeControl "180+1"]
[Date "2022.08.02"]
[WhiteClock "0:01:10"]
[BlackClock "0:00:01"]

1. d4 {[%clk 0:03:00]}  d5 {[%clk 0:02:54]} 2. Bf4 {[%clk 0:03:01]}  Nf6 {[%clk 0:02:53]} 3. e3 {[%clk 0:03:01]}  e6 {[%clk 0:02:53]} 4. Nd2 {[%clk 0:03:01]}  Bd6 {[%clk 0:02:52]} 5. Ngf3 {[%clk 0:03:01]}  O-O {[%clk 0:02:52]} 6. Bd3 {[%clk 0:03:01]}  b6 {[%clk 0:02:51]} 7. Ne5 {[%clk 0:02:58]}  c5 {[%clk 0:02:50]} 8. c3 {[%clk 0:02:58]}  Ba6 {[%clk 0:02:49]} 9. Bb1 {[%clk 0:02:55]}  Bxe5 {[%clk 0:02:30]} 10. dxe5 {[%clk 0:02:53]}  Nfd7 {[%clk 0:02:28]} 11. Qh5 {[%clk 0:02:52]}  g6 {[%clk 0:02:26]} 12. Qh6 {[%clk 0:02:53]}  Qe7 {[%clk 0:02:10]} 13. Nf3 {[%clk 0:02:49]}  f6 {[%clk 0:02:09]} 14. exf6 {[%clk 0:02:48]}  Nxf6 {[%clk 0:02:07]} 15. Qh4 {[%clk 0:02:37]}  Nbd7 {[%clk 0:02:01]} 16. Ne5 {[%clk 0:02:34]}  Nxe5 {[%clk 0:01:54]} 17. Bxe5 {[%clk 0:02:35]}  Rae8 {[%clk 0:01:54]} 18. Bc2 {[%clk 0:02:34]}  Bb5 {[%clk 0:01:12]} 19. O-O-O {[%clk 0:02:21]}  Rf7 {[%clk 0:00:57]} 20. f3 {[%clk 0:02:18]}  Nd7 {[%clk 0:00:54]} 21. Qxe7 {[%clk 0:02:16]}  Rfxe7 {[%clk 0:00:54]} 22. Bd6 {[%clk 0:02:15]}  Rf7 {[%clk 0:00:54]} 23. e4 {[%clk 0:02:15]}  Nf6 {[%clk 0:00:41]} 24. exd5 {[%clk 0:02:03]}  exd5 {[%clk 0:00:36]} 25. Rhe1 {[%clk 0:02:03]}  Rd7 {[%clk 0:00:25]} 26. Rxe8+ {[%clk 0:01:54]}  Nxe8 {[%clk 0:00:26]} 27. Be5 {[%clk 0:01:54]}  Kf7 {[%clk 0:00:22]} 28. f4 {[%clk 0:01:54]}  Nf6 {[%clk 0:00:20]} 29. b3 {[%clk 0:01:47]}  Bc6 {[%clk 0:00:13]} 30. h3 {[%clk 0:01:46]}  Ne4 {[%clk 0:00:13]} 31. c4 {[%clk 0:01:43]}  Ke6 {[%clk 0:00:10]} 32. cxd5+ {[%clk 0:01:36]}  Rxd5 {[%clk 0:00:07]} 33. Re1 {[%clk 0:01:34]}  Ng3 {[%clk 0:00:05]} 34. Bb8+ {[%clk 0:01:28]}  Kd7 {[%clk 0:00:04]} 35. Bxa7 {[%clk 0:01:28]}  b5 {[%clk 0:00:04]} 36. Bb8 {[%clk 0:01:25]}  Nf5 {[%clk 0:00:02]} 37. Be5 {[%clk 0:01:23]}  Nd4 {[%clk 0:00:02]} 38. Bxd4 {[%clk 0:01:18]}  Rxd4 {[%clk 0:00:01]} 39. g3 {[%clk 0:01:17]}  c4 {[%clk 0:00:01]} 40. Rd1 {[%clk 0:01:10]} 1-0


[Site "https://www.chess.com"]

[Event "Titled Tuesday Blitz August 02 Late 2022"]
[White "Izoria, Zviad"]
[Black "Katz, Alexander"]
[WhiteFideId "13601733"]
[BlackFideId "2039796"]
[WhiteElo "2626"]
[BlackElo "2386"]
[Result "1-0"]
[Round "04"]
[TimeControl "180+1"]
[Date "2022.08.02"]
[WhiteClock "0:00:39"]
[BlackClock "0:00:04"]

1. Nf3 {[%clk 0:03:00]}  d5 {[%clk 0:02:59]} 2. d4 {[%clk 0:02:58]}  Nf6 {[%clk 0:02:58]} 3. c4 {[%clk 0:02:58]}  e6 {[%clk 0:02:57]} 4. Nc3 {[%clk 0:02:57]}  Bb4 {[%clk 0:02:56]} 5. e3 {[%clk 0:02:55]}  Nbd7 {[%clk 0:02:54]} 6. Bd2 {[%clk 0:02:47]}  O-O {[%clk 0:02:51]} 7. Rc1 {[%clk 0:02:46]}  c5 {[%clk 0:02:39]} 8. cxd5 {[%clk 0:02:44]}  exd5 {[%clk 0:02:34]} 9. dxc5 {[%clk 0:02:42]}  Bxc5 {[%clk 0:02:28]} 10. Bd3 {[%clk 0:02:39]}  Re8 {[%clk 0:02:26]} 11. O-O {[%clk 0:02:38]}  a6 {[%clk 0:02:25]} 12. Ne2 {[%clk 0:02:35]}  Ba7 {[%clk 0:02:25]} 13. Bc3 {[%clk 0:02:33]}  Nc5 {[%clk 0:02:24]} 14. Bd4 {[%clk 0:02:16]}  Nxd3 {[%clk 0:02:05]} 15. Qxd3 {[%clk 0:02:17]}  Bxd4 {[%clk 0:01:37]} 16. Qxd4 {[%clk 0:02:15]}  Bg4 {[%clk 0:01:35]} 17. Qf4 {[%clk 0:02:04]}  Re4 {[%clk 0:01:30]} 18. Qc7 {[%clk 0:02:04]}  Bxf3 {[%clk 0:01:22]} 19. Qxd8+ {[%clk 0:02:04]}  Rxd8 {[%clk 0:01:21]} 20. gxf3 {[%clk 0:02:04]}  Rb4 {[%clk 0:01:21]} 21. b3 {[%clk 0:02:00]}  a5 {[%clk 0:01:18]} 22. Nd4 {[%clk 0:01:58]}  a4 {[%clk 0:01:17]} 23. a3 {[%clk 0:01:34]}  Rb6 {[%clk 0:01:16]} 24. b4 {[%clk 0:01:25]}  Nd7 {[%clk 0:01:12]} 25. f4 {[%clk 0:01:25]}  Rg6+ {[%clk 0:01:09]} 26. Kh1 {[%clk 0:01:24]}  Nb6 {[%clk 0:01:09]} 27. Rc7 {[%clk 0:01:19]}  Nc4 {[%clk 0:01:09]} 28. Rxb7 {[%clk 0:01:10]}  Nxa3 {[%clk 0:01:08]} 29. Ra7 {[%clk 0:01:08]}  Nc4 {[%clk 0:01:00]} 30. Rxa4 {[%clk 0:01:07]}  h5 {[%clk 0:00:52]} 31. Rg1 {[%clk 0:01:00]}  Rb6 {[%clk 0:00:47]} 32. b5 {[%clk 0:01:00]}  Nd6 {[%clk 0:00:44]} 33. Ra6 {[%clk 0:00:59]}  Rdb8 {[%clk 0:00:37]} 34. Nc6 {[%clk 0:00:52]}  R8b7 {[%clk 0:00:30]} 35. Ne7+ {[%clk 0:00:50]}  Kh7 {[%clk 0:00:12]} 36. Nxd5 {[%clk 0:00:51]}  Rxa6 {[%clk 0:00:11]} 37. bxa6 {[%clk 0:00:52]}  Rb2 {[%clk 0:00:11]} 38. Ra1 {[%clk 0:00:47]}  Ne4 {[%clk 0:00:11]} 39. a7 {[%clk 0:00:42]}  Nxf2+ {[%clk 0:00:11]} 40. Kg1 {[%clk 0:00:40]}  Nh3+ {[%clk 0:00:10]} 41. Kf1 {[%clk 0:00:40]}  Rf2+ {[%clk 0:00:04]} 42. Ke1 {[%clk 0:00:40]}  Rxh2 {[%clk 0:00:04]} 43. a8=Q {[%clk 0:00:39]} 1-0


[Site "https://www.chess.com"]

[Event "Titled Tuesday Blitz August 02 Late 2022"]
[White "Krastev, Alexander"]
[Black "Vasquez Schroeder, Rodrigo"]
[WhiteFideId "12989983"]
[BlackFideId "3400042"]
[WhiteElo "2602"]
[BlackElo "2567"]
[Result "0-1"]
[Round "04"]
[TimeControl "180+1"]
[Date "2022.08.02"]
[WhiteClock "0:00:01"]
[BlackClock "0:01:17"]

1. e4 {[%clk 0:02:55]}  c5 {[%clk 0:03:00]} 2. Nc3 {[%clk 0:02:55]}  a6 {[%clk 0:02:58]} 3. Nge2 {[%clk 0:02:55]}  d6 {[%clk 0:02:55]} 4. g3 {[%clk 0:02:50]}  g6 {[%clk 0:02:55]} 5. Bg2 {[%clk 0:02:51]}  Bg7 {[%clk 0:02:55]} 6. d4 {[%clk 0:02:51]}  cxd4 {[%clk 0:02:55]} 7. Nxd4 {[%clk 0:02:52]}  Bd7 {[%clk 0:02:55]} 8. O-O {[%clk 0:02:51]}  Nc6 {[%clk 0:02:55]} 9. Be3 {[%clk 0:02:42]}  Nf6 {[%clk 0:02:55]} 10. h3 {[%clk 0:02:43]}  O-O {[%clk 0:02:54]} 11. Qe2 {[%clk 0:02:36]}  Rc8 {[%clk 0:02:49]} 12. Rad1 {[%clk 0:02:36]}  Ne5 {[%clk 0:02:48]} 13. f4 {[%clk 0:02:20]}  Nc4 {[%clk 0:02:48]} 14. Bc1 {[%clk 0:02:20]}  Qb6 {[%clk 0:02:41]} 15. b3 {[%clk 0:02:03]}  e5 {[%clk 0:02:36]} 16. fxe5 {[%clk 0:01:36]}  Nxe5 {[%clk 0:02:20]} 17. Bb2 {[%clk 0:01:06]}  Nh5 {[%clk 0:02:04]} 18. Nd5 {[%clk 0:01:03]}  Qd8 {[%clk 0:01:57]} 19. Kh2 {[%clk 0:00:58]}  Nf6 {[%clk 0:01:54]} 20. c4 {[%clk 0:00:53]}  b5 {[%clk 0:01:50]} 21. cxb5 {[%clk 0:00:48]}  Nxd5 {[%clk 0:01:48]} 22. exd5 {[%clk 0:00:45]}  axb5 {[%clk 0:01:48]} 23. Nxb5 {[%clk 0:00:20]}  Bxb5 {[%clk 0:01:41]} 24. Qxb5 {[%clk 0:00:21]}  Rc2 {[%clk 0:01:41]} 25. Bd4 {[%clk 0:00:16]}  Rxa2 {[%clk 0:01:39]} 26. Rf2 {[%clk 0:00:16]}  Rxf2 {[%clk 0:01:35]} 27. Bxf2 {[%clk 0:00:17]}  Qf6 {[%clk 0:01:35]} 28. Bd4 {[%clk 0:00:14]}  h5 {[%clk 0:01:33]} 29. Rf1 {[%clk 0:00:11]}  Qe7 {[%clk 0:01:29]} 30. Qe2 {[%clk 0:00:07]}  Ng4+ {[%clk 0:01:28]} 31. Qxg4 {[%clk 0:00:02]}  hxg4 {[%clk 0:01:28]} 32. Bg1 {[%clk 0:00:01]}  gxh3 {[%clk 0:01:27]} 33. Kxh3 {[%clk 0:00:02]}  Be5 {[%clk 0:01:25]} 34. Rf3 {[%clk 0:00:02]}  Kg7 {[%clk 0:01:24]} 35. Bf1 {[%clk 0:00:02]}  Rh8+ {[%clk 0:01:23]} 36. Kg2 {[%clk 0:00:03]}  Qg5 {[%clk 0:01:23]} 37. Be3 {[%clk 0:00:02]}  Qg4 {[%clk 0:01:23]} 38. Kf2 {[%clk 0:00:03]}  Rh2+ {[%clk 0:01:22]} 39. Bg2 {[%clk 0:00:04]}  Qe4 {[%clk 0:01:20]} 40. Kg1 {[%clk 0:00:02]}  Rxg2+ {[%clk 0:01:20]} 41. Kxg2 {[%clk 0:00:03]}  f5 {[%clk 0:01:19]} 42. b4 {[%clk 0:00:02]}  Qxb4 {[%clk 0:01:18]} 43. Bf2 {[%clk 0:00:01]}  Qe4 {[%clk 0:01:17]} 44. Be1 {[%clk 0:00:01]}  g5 {[%clk 0:01:17]} 0-1


[Site "https://www.chess.com"]

[Event "Titled Tuesday Blitz August 02 Late 2022"]
[White "Maltsevskaya, Aleksandra"]
[Black "Xiong, Jeffery"]
[WhiteFideId "24174041"]
[BlackFideId "2047640"]
[WhiteElo "2243"]
[BlackElo "2714"]
[Result "1-0"]
[Round "04"]
[TimeControl "180+1"]
[Date "2022.08.02"]
[WhiteClock "0:00:01"]
[BlackClock "0:00:04"]

1. e4 {[%clk 0:02:48]}  c6 {[%clk 0:02:57]} 2. d4 {[%clk 0:02:45]}  d5 {[%clk 0:02:57]} 3. e5 {[%clk 0:02:46]}  Bf5 {[%clk 0:02:57]} 4. c4 {[%clk 0:02:41]}  e6 {[%clk 0:02:55]} 5. h4 {[%clk 0:02:41]}  h5 {[%clk 0:02:53]} 6. Nc3 {[%clk 0:02:41]}  Ne7 {[%clk 0:02:51]} 7. Nge2 {[%clk 0:02:40]}  Bg4 {[%clk 0:02:51]} 8. Qb3 {[%clk 0:02:29]}  Bxe2 {[%clk 0:02:19]} 9. Bxe2 {[%clk 0:02:27]}  Qb6 {[%clk 0:02:20]} 10. Qd1 {[%clk 0:02:17]}  Nf5 {[%clk 0:02:17]} 11. c5 {[%clk 0:02:16]}  Qb4 {[%clk 0:02:15]} 12. Be3 {[%clk 0:01:54]}  Qxb2 {[%clk 0:02:12]} 13. Rc1 {[%clk 0:01:48]}  b6 {[%clk 0:02:11]} 14. O-O {[%clk 0:01:30]}  Nd7 {[%clk 0:02:02]} 15. Bd3 {[%clk 0:00:58]}  Nxh4 {[%clk 0:01:26]} 16. Na4 {[%clk 0:00:44]}  Qa3 {[%clk 0:01:15]} 17. cxb6 {[%clk 0:00:26]}  axb6 {[%clk 0:01:14]} 18. Rxc6 {[%clk 0:00:24]}  Be7 {[%clk 0:01:08]} 19. Nxb6 {[%clk 0:00:18]}  Nxb6 {[%clk 0:01:09]} 20. Rxb6 {[%clk 0:00:19]}  g6 {[%clk 0:01:03]} 21. Rb7 {[%clk 0:00:17]}  Nf5 {[%clk 0:00:38]} 22. Bxf5 {[%clk 0:00:15]}  gxf5 {[%clk 0:00:39]} 23. Qc1 {[%clk 0:00:05]}  O-O {[%clk 0:00:34]} 24. Qd1 {[%clk 0:00:05]}  Rfb8 {[%clk 0:00:29]} 25. Rxb8+ {[%clk 0:00:05]}  Rxb8 {[%clk 0:00:30]} 26. Qxh5 {[%clk 0:00:05]}  Qxa2 {[%clk 0:00:13]} 27. Kh2 {[%clk 0:00:03]}  Qa7 {[%clk 0:00:07]} 28. Rh1 {[%clk 0:00:03]}  Rb3 {[%clk 0:00:06]} 29. Kg3 {[%clk 0:00:03]}  Bf6 {[%clk 0:00:02]} 30. exf6 {[%clk 0:00:02]}  Rxe3+ {[%clk 0:00:03]} 31. fxe3 {[%clk 0:00:02]}  Qxd4 {[%clk 0:00:04]} 32. Qh8# {[%clk 0:00:01]} 1-0


[Site "https://www.chess.com"]